[Event "Moscow Youth U19 2019"]
[Site "Moscow"]
[Date "2019.11.19"]
[Round "2.1"]
[White "Zavialov, Nikita A."]
[Black "Pavlov, Danila"]
[Result "0-1"]
[ECO "C01"]
[WhiteElo "2066"]
[BlackElo "2369"]
[Annotator "ChessBase"]
[PlyCount "78"]
[EventDate "2019.11.18"]
[EventType "swiss"]
[EventCountry "RUS"]
[SourceTitle "playchess.com"]
[Source "ChessBase"]
[SourceQuality "1"]
[TimeControl "5400+30"]

1. e4 {[%emt 0:00:00]} e6 {[%emt 0:00:29]} 2. d4 {[%emt 0:00:00]} d5 {[%emt 1:30:31]} 3. exd5 {[%emt 0:00:00]} exd5 {[%emt 0:00:00]} 4. Bd3 {[%emt 0:00:00]} Nc6 {[%emt 0:00:00]} 5. Nf3 {[%emt 0:00:12]} Bd6 {[%emt 0:00:00]} 6. O-O {[%emt 0:00:41]} Bg4 {[%emt 0:00:00]} 7. c3 {[%emt 0:00:11]} Qd7 {[%emt 0:00:00]} 8. Re1+ {[%emt 0:00:35]} Nge7 {[%emt 0:00:00]} 9. Nbd2 {[%emt 0:05:10]} O-O-O {[%emt 0:00:00]} 10. b4 {[%emt 0:08:08]} Rde8 {[%emt 0:00:00]} 11. b5 {[%emt 0:04:32]} Nd8 {[%emt 0:00:00]} 12. Qa4 {[%emt 0:00:22]} Kb8 {[%emt 0:00:00]} 13. Ne5 {[%emt 0:02:57]} Bxe5 {[%emt 0:00:00]} 14. dxe5 {[%emt 0:00:15]} Ng6 {[%emt 0:00:00]} 15. Bxg6 {[%emt 0:17:22]} hxg6 {[%emt 0:00:00]} 16. Nb3 {[%emt 0:08:39]} f6 {[%emt 0:00:00]} 17. Be3 {[%emt 0:14:12]} b6 {[%emt 0:00:00]} 18. Bf4 {[%emt 0:07:04]} g5 {[%emt 0:00:00]} 19. Bg3 {[%emt 0:00:27]} f5 {[%emt 0:00:00]} 20. f4 {[%emt 0:08:57]} gxf4 {[%emt 0:00:00]} 21. Bxf4 {[%emt 0:00:11]} a5 {[%emt 0:00:00]} 22. Nd4 {[%emt 0:04:11]} Rh5 {[%emt 0:02:13]} 23. h3 {[%emt 0:04:45]} Bxh3 {[%emt 0:00:15]} 24. gxh3 {[%emt 0:13:09]} g5 {[%emt 0:08:32]} 25. Bh2 {[%emt 0:05:24]} f4 {[%emt 0:02:34]} 26. e6 {[%emt 0:06:20]} Nxe6 {[%emt 0:06:12]} 27. Re5 {[%emt 0:00:34]} Nxd4 {[%emt 0:03:33]} 28. Qxd4 {[%emt 0:00:28]} Rxe5 {[%emt 0:00:08]} 29. Qxe5 {[%emt 0:00:11]} Qxh3 {[%emt 0:00:10]} 30. Qe2 {[%emt 0:00:53]} Rh8 {[%emt 0:00:54]} 31. Rd1 {[%emt 0:01:01]} Qf5 {[%emt 0:00:48]} 32. Qg2 {[%emt 0:00:42]} g4 {[%emt 0:00:28]} 33. Qxd5 {[%emt 0:01:19]} Qxd5 {[%emt 0:00:14]} 34. Rxd5 {[%emt 0:00:07]} g3 {[%emt 0:00:01]} 35. Bxg3 {[%emt 0:00:51]} fxg3 {[%emt 0:00:01]} 36. a4 {[%emt 0:00:42]} Rh4 {[%emt 0:01:06]} 37. Rd4 {[%emt 0:00:28]} Rxd4 {[%emt 0:00:36]} 38. cxd4 {[%emt 0:00:03]} c6 {[%emt 0:00:08]} 39. bxc6 {[%emt 0:00:17]} b5 {[%emt 0:00:04]} 0-1

[Event "Moscow Youth U19 2019"]
[Site "Moscow"]
[Date "2019.11.19"]
[Round "2.2"]
[White "Rysaev, Danial"]
[Black "Yeritsyan, Aram"]
[Result "0-1"]
[ECO "D11"]
[WhiteElo "2029"]
[BlackElo "2276"]
[Annotator "ChessBase"]
[PlyCount "28"]
[EventDate "2019.11.18"]
[EventType "swiss"]
[EventCountry "RUS"]
[SourceTitle "playchess.com"]
[Source "ChessBase"]
[SourceQuality "1"]
[TimeControl "5400+30"]

1. d4 {[%emt 0:00:36]} d5 {[%emt 0:00:00]} 2. c4 {[%emt 0:00:10]} c6 {[%emt 0:00:00]} 3. Nf3 {[%emt 0:00:32]} Nf6 {[%emt 0:00:00]} 4. Qc2 {[%emt 0:01:58]} a6 {[%emt 0:04:34]} 5. Nbd2 {[%emt 0:04:23]} b5 {[%emt 0:02:33]} 6. b3 {[%emt 0:00:29]} e6 {[%emt 0:00:15]} 7. g3 {[%emt 0:00:21]} Nbd7 {[%emt 0:00:34]} 8. Bg2 {[%emt 0:00:19]} Bd6 {[%emt 0:00:25]} 9. O-O {[%emt 0:00:30]} Bb7 {[%emt 0:06:38]} 10. e4 {[%emt 0:03:22]} dxe4 {[%emt 0:00:35]} 11. Ng5 {[%emt 0:00:21]} O-O {[%emt 0:02:57]} 12. Ngxe4 {[%emt 0:08:09]} Be7 {[%emt 0:00:28]} 13. Bb2 {[%emt 0:00:36]} Qc7 {[%emt 0:04:58]} 14. Nxf6+ Nxf6 {[%emt 0:10:36]} 0-1

[Event "Moscow Youth U19 2019"]
[Site "Moscow"]
[Date "2019.11.19"]
[Round "2.3"]
[White "Fedorov, Nikita"]
[Black "Talyzin, Valeriy"]
[Result "1-0"]
[ECO "B06"]
[WhiteElo "2133"]
[BlackElo "1829"]
[Annotator "ChessBase"]
[PlyCount "51"]
[EventDate "2019.11.18"]
[EventType "swiss"]
[EventCountry "RUS"]
[SourceTitle "playchess.com"]
[Source "ChessBase"]
[SourceQuality "1"]
[TimeControl "5400+30"]

1. e4 {[%emt 0:00:00]} g6 {[%emt 0:00:00]} 2. d4 {[%emt 0:00:00]} Bg7 {[%emt 0:00:00]} 3. Nc3 {[%emt 0:00:00]} d6 {[%emt 0:00:00]} 4. Be3 {[%emt 0:00:00]} c6 {[%emt 0:00:11]} 5. Qd2 {[%emt 0:00:15]} b5 {[%emt 0:01:10]} 6. f3 {[%emt 0:00:11]} a5 {[%emt 0:00:15]} 7. h4 {[%emt 0:00:53]} h5 {[%emt 0:00:18]} 8. a4 {[%emt 0:01:00]} b4 {[%emt 0:00:22]} 9. Nd1 {[%emt 0:00:06]} Nd7 {[%emt 0:00:35]} 10. Nh3 {[%emt 0:00:24]} Ngf6 {[%emt 0:06:03]} 11. Ng5 {[%emt 0:00:41]} Nh7 {[%emt 0:03:45]} 12. Nxh7 {[%emt 0:12:40]} Rxh7 {[%emt 0:00:07]} 13. Nf2 {[%emt 0:03:08]} c5 {[%emt 0:23:17]} 14. c3 {[%emt 0:03:02]} Ba6 {[%emt 0:04:57]} 15. Bxa6 {[%emt 0:01:50]} Rxa6 {[%emt 0:00:04]} 16. O-O {[%emt 0:00:56]} Rh8 {[%emt 0:20:26]} 17. Rfd1 {[%emt 0:01:32]} Ra8 {[%emt 0:00:33]} 18. Nh3 {[%emt 0:14:20]} Qc7 {[%emt 0:15:00]} 19. Ng5 {[%emt 0:04:39]} b3 {[%emt 0:08:36]} 20. dxc5 {[%emt 0:00:36]} Ne5 {[%emt 0:01:16]} 21. f4 {[%emt 0:01:50]} Nc4 {[%emt 0:00:48]} 22. Qd5 {[%emt 0:00:36]} Nxe3 {[%emt 0:00:04]} 23. Qxa8+ {[%emt 0:02:17]} Kd7 {[%emt 0:00:06]} 24. c6+ {[%emt 0:00:04]} Qxc6 {[%emt 0:00:16]} 25. Qa7+ {[%emt 0:00:04]} Qc7 {[%emt 0:02:05]} 26. Qxe3 {[%emt 0:00:08]} 1-0

[Event "Moscow Youth U19 2019"]
[Site "Moscow"]
[Date "2019.11.19"]
[Round "2.4"]
[White "Usov, Aleksandr E."]
[Black "Miroshnik, Ekaterina"]
[Result "1-0"]
[ECO "C06"]
[WhiteElo "1930"]
[BlackElo "2127"]
[Annotator "ChessBase"]
[PlyCount "66"]
[EventDate "2019.11.18"]
[EventType "swiss"]
[EventCountry "RUS"]
[SourceTitle "playchess.com"]
[Source "ChessBase"]
[SourceQuality "1"]
[TimeControl "5400+30"]

1. e4 {[%emt 0:00:00]} e6 {[%emt 0:03:34]} 2. d4 {[%emt 0:00:00]} d5 {[%emt 0:00:05]} 3. Nd2 {[%emt 0:00:00]} Nf6 {[%emt 0:00:03]} 4. e5 {[%emt 0:00:00]} Nfd7 {[%emt 0:02:04]} 5. c3 {[%emt 0:00:04]} c5 {[%emt 0:00:09]} 6. Bd3 {[%emt 0:00:05]} Nc6 {[%emt 0:00:06]} 7. Ngf3 {[%emt 0:00:05]} cxd4 {[%emt 0:00:20]} 8. cxd4 {[%emt 0:00:07]} f6 {[%emt 0:14:14]} 9. exf6 {[%emt 0:00:10]} Nxf6 {[%emt 0:00:06]} 10. O-O {[%emt 0:00:07]} Bd6 {[%emt 0:00:01]} 11. b3 {[%emt 0:00:07]} O-O {[%emt 0:01:37]} 12. Bb2 {[%emt 0:00:38]} Bd7 {[%emt 0:04:52]} 13. Ne5 {[%emt 0:02:06]} Qc7 {[%emt 0:09:12]} 14. Rc1 {[%emt 0:01:21]} Rae8 {[%emt 0:00:11]} 15. Re1 {[%emt 0:01:20]} Qb6 {[%emt 0:04:43]} 16. Ndf3 {[%emt 0:02:20]} Bc8 {[%emt 0:03:19]} 17. Qe2 {[%emt 0:03:35]} Bb4 {[%emt 0:03:16]} 18. Red1 {[%emt 0:00:49]} Ne7 {[%emt 0:05:52]} 19. Qc2 {[%emt 0:05:27]} Bd6 {[%emt 0:03:45]} 20. Ng5 {[%emt 0:01:46]} Nf5 {[%emt 0:08:48]} 21. Qe2 {[%emt 0:08:50]} Be7 {[%emt 0:04:17]} 22. Bb1 {[%emt 0:03:08]} a6 {[%emt 0:09:34]} 23. Qf3 {[%emt 0:08:24]} Nd7 {[%emt 0:03:58]} 24. Qh5 {[%emt 0:03:34]} Bxg5 {[%emt 0:04:21]} 25. Rxc8 {[%emt 0:02:49]} Nf6 {[%emt 0:01:05]} 26. Rxe8 {[%emt 0:00:54]} Rxe8 {[%emt 0:02:50]} 27. Qxg5 {[%emt 0:00:22]} Nd6 {[%emt 0:00:29]} 28. Ng4 {[%emt 0:00:21]} Nfe4 {[%emt 0:00:24]} 29. Bxe4 {[%emt 0:00:26]} Nxe4 {[%emt 0:00:05]} 30. Qe3 {[%emt 0:00:23]} h5 {[%emt 0:01:22]} 31. Ne5 {[%emt 0:00:14]} Qb4 {[%emt 0:00:20]} 32. f3 {[%emt 0:00:16]} Nd6 {[%emt 0:00:07]} 33. Qg5 {[%emt 0:00:11]} Nc8 {[%emt 0:00:39]} 1-0

[Event "Moscow Youth U19 2019"]
[Site "Moscow"]
[Date "2019.11.19"]
[Round "2.5"]
[White "Beliuga, Mikhail"]
[Black "Vetokhin, Savva"]
[Result "0-1"]
[ECO "A46"]
[WhiteElo "1816"]
[BlackElo "2081"]
[Annotator "NA"]
[PlyCount "42"]
[EventDate "2019.11.18"]
[EventType "swiss"]
[EventCountry "RUS"]
[SourceTitle "playchess.com"]
[Source "ChessBase"]
[SourceQuality "1"]
[TimeControl "5400+30"]

{[%evp 8,42,7,0,22,-13,-22,-8,110,18,57,51,70,-180,-176,-183,-196,-300,-256,-598,-654,-663,-652,-716,-759,32767,32767,32767,32767,-635,-656,32767,-878,-795,-938,-1066,-883]} 1. d4 {[%emt 0:01:40]} Nf6 {[%emt 0:00:00]} 2. Nf3 {[%emt 0:00:02]} e6 {[%emt 0:00:03]} 3. g3 {[%emt 0:00:20]} b5 {[%emt 0:00:18]} 4. Bg2 {[%emt 0:00:48]} d5 {[%emt 0:00:17]} 5. Ne5 {[%emt 0:03:10]} (5. O-O Be7 6. a4 b4 7. c4 bxc3 8. Nxc3 O-O 9. Bf4 c6 10. a5 Nh5 11. Bd2 Nd7 12. e4 Ba6 13. Re1 Nhf6 14. e5 Ne8 15. Na4 Bd3 16. Rc1 {0-1 (45) Kuzubov,Y (2636)-Bosiocic,M (2619) Slovenia 2019}) 5... Bd6 {[%emt 0:01:57]} 6. c4 {[%emt 0:02:30] A46: 1 d4 Nf6 2 Nf3 e6: Torre, London and Colle Systems} bxc4 {[%emt 0:02:45]} 7. Nxc4 {[%emt 0:00:15]} dxc4 $146 {[%emt 0:05:26]} ({Predecessor:} 7... Be7 $11 {remains equal.} 8. Ne5 O-O 9. Nc3 Nfd7 10. Nd3 Ba6 11. O-O c5 12. dxc5 Nxc5 13. Nxc5 Bxc5 14. Nxd5 exd5 15. Qxd5 Qxd5 16. Bxd5 {0-1 (45) Ozeran,V (2133)-Hoepfl,T (2281) Germany 2015}) 8. Bxa8 {[%emt 0:00:05]} c6 $1 {[%emt 0:00:04]} 9. Bg5 {[%emt 0:06:13]} Qa5+ {[%emt 0:04:23]} 10. Qd2 $2 {[%emt 0:01:19] [#]} (10. Bd2 $1 $11 Qb6 11. Nc3) 10... Bb4 $1 {[%emt 0:00:23]} 11. Nc3 {[%emt 0:06:27]} Ne4 $1 {[%emt 0:00:23]} 12. Qf4 {[%emt 0:15:32]} (12. Qe3 $142 Nxg5 13. O-O) 12... Bxc3+ {[%emt 0:07:12]} ({Not} 12... Nxg5 13. Kf1 $11) 13. bxc3 $2 {[%emt 0:05:20]} (13. Kf1 Qxg5 14. Qxb8 {[%mdl 64] Double Attack}) 13... Qxc3+ {[%emt 0:00:11] Double Attack} ({Weaker is} 13... Nxg5 14. Rc1 $16) 14. Kf1 {[%emt 0:00:06]} Qxa1+ {[%emt 0:01:12] Double Attack} 15. Kg2 {[%emt 0:00:07]} Qxd4 {[%emt 0:00:09]} 16. Rb1 {[%emt 0:08:34]} Qd5 {[%emt 0:02:31]} 17. Rxb8 {[%emt 0:46:02]} O-O {[%emt 0:03:14]} 18. Be7 {[%emt 0:11:26]} e5 {[%emt 0:02:58]} 19. Qe3 {[%emt 0:13:02] [#]} Bh3+ $1 {[%emt 0:01:08]} 20. Kxh3 {[%emt 0:00:05]} Rxb8 {[%emt 0:00:03]} 21. Qxa7 {[%emt 0:00:32] [#]} Nxf2+ $19 {[%emt 0:00:17]} 0-1

[Event "Moscow Youth U19 2019"]
[Site "Moscow"]
[Date "2019.11.19"]
[Round "2.6"]
[White "Makarian, Rudik"]
[Black "Shlykov, Yaroslav"]
[Result "1-0"]
[ECO "A03"]
[WhiteElo "2405"]
[BlackElo "1623"]
[Annotator "ChessBase"]
[PlyCount "71"]
[EventDate "2019.11.18"]
[EventType "swiss"]
[EventCountry "RUS"]
[SourceTitle "playchess.com"]
[Source "ChessBase"]
[SourceQuality "1"]
[TimeControl "5400+30"]

1. d3 {[%emt 0:11:40]} Nf6 {[%emt 0:00:00]} 2. f4 {[%emt 0:00:15]} d5 {[%emt 0:00:00]} 3. Nf3 {[%emt 0:00:06]} g6 {[%emt 0:00:00]} 4. g3 {[%emt 0:00:03]} Bg7 {[%emt 0:00:00]} 5. Bg2 {[%emt 0:00:04]} O-O {[%emt 0:00:18]} 6. O-O {[%emt 0:00:08]} c5 {[%emt 0:00:39]} 7. c3 {[%emt 0:01:28]} Nc6 {[%emt 0:01:14]} 8. Na3 {[%emt 0:00:08]} a6 {[%emt 0:03:07]} 9. Nc2 {[%emt 0:08:18]} Qd6 {[%emt 0:06:49]} 10. Qe1 {[%emt 0:20:08]} b5 {[%emt 0:04:09]} 11. e4 {[%emt 0:00:26]} dxe4 {[%emt 0:05:09]} 12. dxe4 {[%emt 0:00:03]} e5 {[%emt 0:00:55]} 13. fxe5 {[%emt 0:53:43]} Nxe5 {[%emt 0:00:08]} 14. Nxe5 {[%emt 0:00:07]} Qxe5 {[%emt 0:00:23]} 15. Bf4 {[%emt 0:06:42]} Qe6 {[%emt 0:00:32]} 16. Bd6 {[%emt 0:01:24]} Qxd6 {[%emt 0:12:13]} 17. e5 {[%emt 0:00:07]} Qb8 {[%emt 0:00:07]} 18. exf6 {[%emt 0:01:31]} Bh6 {[%emt 1:03:17]} 19. Bxa8 {[%emt 0:00:31]} Qxa8 {[%emt 0:00:04]} 20. Qf2 {[%emt 0:01:09]} Qc6 {[%emt 1:04:08]} 21. h4 {[%emt 0:06:54]} Qe6 {[%emt 1:01:15]} 22. Rfe1 {[%emt 0:01:38]} Qh3 {[%emt 0:02:42]} 23. Qg2 {[%emt 0:06:59]} Qg4 {[%emt 0:03:28]} 24. Ne3 {[%emt 0:01:08]} Bxe3+ {[%emt 0:44:46]} 25. Rxe3 {[%emt 0:00:01]} Be6 {[%emt 0:00:25]} 26. Rae1 {[%emt 0:01:48]} Qf5 {[%emt 0:39:28]} 27. Rf1 {[%emt 0:02:44]} Qg4 {[%emt 0:00:32]} 28. Re4 {[%emt 0:04:03]} Qh5 {[%emt 0:00:09]} 29. Qd2 {[%emt 0:00:10]} Bd5 {[%emt 0:05:58]} 30. Re7 {[%emt 0:01:17]} Bxa2 {[%emt 0:05:27]} 31. Rd7 {[%emt 0:03:44]} Qe5 {[%emt 0:00:45]} 32. Qg5 {[%emt 0:00:59]} Qb8 {[%emt 0:01:10]} 33. Rfd1 {[%emt 0:02:50]} Be6 {[%emt 0:28:06]} 34. R1d6 {[%emt 0:01:20]} Kh8 {[%emt 0:00:40]} 35. Qh6 {[%emt 0:00:09]} Rg8 {[%emt 0:27:44]} 36. Rd8 {[%emt 0:00:11]} 1-0

[Event "Moscow Youth U19 2019"]
[Site "Moscow"]
[Date "2019.11.19"]
[Round "2.7"]
[White "Gotsiuk, Denis"]
[Black "Orlov, Aleksandr"]
[Result "1-0"]
[ECO "D02"]
[WhiteElo "1976"]
[BlackElo "1965"]
[Annotator "NA"]
[PlyCount "67"]
[EventDate "2019.11.18"]
[EventType "swiss"]
[EventCountry "RUS"]
[SourceTitle "playchess.com"]
[Source "ChessBase"]
[SourceQuality "1"]
[TimeControl "5400+30"]

1. d4 {[%emt 0:00:00]} d5 {[%emt 0:00:00]} 2. Bf4 {[%emt 0:00:00]} Nf6 {[%emt 0:00:00]} 3. e3 {[%emt 0:00:00]} e6 {[%emt 0:00:13]} 4. Nf3 {[%emt 0:00:00]} c5 {[%emt 0:00:09]} 5. c3 {[%emt 0:00:00]} Nc6 {[%emt 0:00:11]} 6. Nbd2 {[%emt 0:00:00]} Bd6 {[%emt 0:01:49]} 7. Bg3 {[%emt 1:33:30]} Qe7 {[%emt 0:01:44]} 8. Ne5 {[%emt 0:02:55]} Bxe5 {[%emt 0:04:14]} 9. dxe5 {[%emt 0:00:37]} Nd7 {[%emt 0:00:08]} 10. f4 {[%emt 1:31:28]} f6 {[%emt 0:03:01]} 11. exf6 {[%emt 0:18:48]} Nxf6 {[%emt 0:00:50]} 12. Nf3 {[%emt 0:01:58]} Bd7 {[%emt 1:23:41]} 13. Bd3 {[%emt 0:04:18]} O-O-O {[%emt 0:00:38]} 14. Qe2 {[%emt 0:01:38]} Be8 {[%emt 0:04:20]} 15. O-O {[%emt 0:13:17]} Bh5 {[%emt 0:02:38]} 16. e4 {[%emt 0:02:22]} Bg6 {[%emt 0:06:28]} 17. e5 {[%emt 0:18:56]} Nh5 $18 {[%emt 0:12:36]} 18. Bh4 {[%emt 0:01:33]} Nxf4 {[%emt 0:01:54]} 19. Qe3 {[%emt 0:07:57]} Qc7 {[%emt 0:02:41]} 20. Bxd8 {[%emt 0:01:07]} Rxd8 {[%emt 0:53:38]} 21. Bxg6 {[%emt 0:01:17]} Nxg6 {[%emt 0:00:17]} 22. Qxc5 {[%emt 0:01:06]} Ngxe5 {[%emt 0:01:10]} 23. Nxe5 {[%emt 0:01:01]} Qxe5 {[%emt 0:00:06]} 24. Rae1 {[%emt 0:02:15]} Qd6 {[%emt 0:00:29]} 25. Qxd6 {[%emt 0:01:49]} Rxd6 {[%emt 0:00:06]} 26. Rf7 {[%emt 0:00:51]} Rd7 {[%emt 0:00:07]} 27. Rf8+ {[%emt 0:00:28]} Rd8 {[%emt 0:00:06]} 28. Ref1 {[%emt 0:01:58]} Ne5 {[%emt 0:01:42]} 29. Rxd8+ {[%emt 0:00:21]} Kxd8 {[%emt 0:00:06]} 30. Re1 {[%emt 0:00:02]} Nd3 {[%emt 0:00:48]} 31. Rxe6 {[%emt 0:00:17]} Nxb2 {[%emt 0:00:21]} 32. Rd6+ {[%emt 0:13:31]} Kc7 {[%emt 0:00:09]} 33. Rxd5 {[%emt 0:00:03]} Na4 {[%emt 0:00:09]} 34. Ra5 {[%emt 0:14:16]} 1-0

[Event "Moscow Youth U19 2019"]
[Site "Moscow"]
[Date "2019.11.19"]
[Round "2.8"]
[White "Gurvich, Vitaly"]
[Black "Budnichenko, Vladimir"]
[Result "1-0"]
[ECO "E16"]
[WhiteElo "2265"]
[BlackElo "1489"]
[Annotator "ChessBase"]
[PlyCount "73"]
[EventDate "2019.11.18"]
[EventType "swiss"]
[EventCountry "RUS"]
[SourceTitle "playchess.com"]
[Source "ChessBase"]
[SourceQuality "1"]
[TimeControl "5400+30"]

1. d4 {[%emt 0:02:21]} Nf6 {[%emt 0:00:00]} 2. c4 {[%emt 0:00:26]} e6 {[%emt 0:00:00]} 3. Nf3 {[%emt 0:00:27]} Bb4+ {[%emt 0:00:00]} 4. Bd2 {[%emt 0:00:02]} a5 {[%emt 0:00:00]} 5. g3 {[%emt 0:00:05]} b6 {[%emt 0:00:00]} 6. Bg2 {[%emt 0:00:03]} Bb7 {[%emt 0:00:00]} 7. O-O {[%emt 0:00:06]} O-O {[%emt 0:00:24]} 8. Nc3 {[%emt 0:00:08]} d6 {[%emt 0:00:51]} 9. Rc1 {[%emt 0:00:28]} Bxc3 {[%emt 0:01:59]} 10. Bxc3 {[%emt 0:00:08]} Ne4 {[%emt 0:00:23]} 11. d5 {[%emt 0:03:06]} e5 {[%emt 0:05:19]} 12. Be1 {[%emt 0:03:28]} f5 {[%emt 0:01:44]} 13. Qc2 {[%emt 0:00:15]} Nc5 {[%emt 0:12:50]} 14. b3 {[%emt 0:01:53]} Nbd7 {[%emt 0:11:36]} 15. Bc3 {[%emt 0:04:40]} Qe7 {[%emt 0:06:42]} 16. Nd2 {[%emt 0:00:43]} f4 {[%emt 0:02:11]} 17. a3 {[%emt 0:00:19]} Nf6 {[%emt 0:08:01]} 18. b4 {[%emt 0:03:41]} axb4 {[%emt 0:00:59]} 19. axb4 {[%emt 0:00:02]} Na4 {[%emt 0:02:06]} 20. Ba1 {[%emt 0:08:15]} b5 {[%emt 0:05:31]} 21. Nb3 {[%emt 0:00:38]} bxc4 {[%emt 0:01:26]} 22. Na5 {[%emt 0:01:15]} Nc5 {[%emt 0:03:48]} 23. Nxb7 {[%emt 0:01:30]} Nxb7 {[%emt 0:00:07]} 24. Qxc4 {[%emt 0:00:03]} fxg3 {[%emt 0:03:07]} 25. hxg3 {[%emt 0:00:21]} Rf7 {[%emt 0:06:34]} 26. Bh3 {[%emt 0:02:58]} Nd8 {[%emt 0:00:56]} 27. Bb2 {[%emt 0:05:22]} e4 {[%emt 0:01:59]} 28. Bd4 {[%emt 0:00:38]} g5 {[%emt 0:02:06]} 29. Ra1 {[%emt 0:11:23]} Rxa1 {[%emt 0:01:32]} 30. Rxa1 {[%emt 0:00:07]} g4 {[%emt 0:01:46]} 31. Bg2 {[%emt 0:00:17]} Nh5 {[%emt 0:09:53]} 32. Ra3 {[%emt 0:03:42]} Rf5 {[%emt 0:02:04]} 33. Ra8 {[%emt 0:01:24]} Rf7 {[%emt 0:04:34]} 34. Bxe4 {[%emt 0:01:00]} Qxe4 {[%emt 0:00:45]} 35. Rxd8+ {[%emt 0:00:05]} Rf8 {[%emt 0:00:10]} 36. Rxf8+ {[%emt 0:00:03]} Kxf8 {[%emt 0:00:03]} 37. Bg7+ {[%emt 0:00:05]} 1-0

[Event "Moscow Youth U19 2019"]
[Site "Moscow"]
[Date "2019.11.19"]
[Round "2.10"]
[White "Sekoyan, Vachagan"]
[Black "Talalov, Anton"]
[Result "1-0"]
[ECO "D31"]
[WhiteElo "2084"]
[BlackElo "1792"]
[Annotator "NA"]
[PlyCount "69"]
[EventDate "2019.11.18"]
[EventType "swiss"]
[EventCountry "RUS"]
[SourceTitle "playchess.com"]
[Source "ChessBase"]
[SourceQuality "1"]
[TimeControl "5400+30"]

{[%evp 16,58,21,26,36,40,36,35,54,39,89,54,77,60,53,41,32767,32767,53,32767,32767,32767,32767,158,173,133,204,127,32767,32767,32767,32767,380,469,294,358,32767,525,32767,631,630,32767,32767,32767,6395]} 1. d4 {[%emt 0:00:00]} d5 {[%emt 0:00:00]} 2. c4 {[%emt 0:00:00]} e6 {[%emt 0:00:00]} 3. Nc3 {[%emt 0:00:00]} Be7 {[%emt 0:00:00]} 4. cxd5 {[%emt 0:00:00]} exd5 {[%emt 0:00:00]} 5. Bf4 {[%emt 0:00:05]} c6 {[%emt 0:00:00]} 6. e3 {[%emt 0:00:59]} Bf5 {[%emt 0:00:07]} 7. g4 {[%emt 0:01:47]} Bg6 {[%emt 1:33:23]} 8. h4 {[%emt 0:03:50] D31: Queen's Gambit Declined: Semi-Slav without ...Nf6 (+ Marshall Gambit and Noteboom) and Exchange Variation lines without ...Nf6} h6 {[%emt 0:14:30]} 9. h5 {[%emt 0:00:26]} Bh7 {[%emt 0:00:10]} 10. Bd3 {[%emt 0:00:27]} Bxd3 {[%emt 0:01:08]} 11. Qxd3 {[%emt 0:00:06]} Nf6 {[%emt 0:00:31]} 12. f3 {[%emt 0:02:20]} O-O $146 {[%emt 0:08:17]} (12... Nbd7 $14) ({Predecessor:} 12... Bd6 13. Nge2 Bxf4 14. Nxf4 Qd6 15. O-O-O Nbd7 {1-0 (38) Vitiugov,N (2722)-Zhou,J (2668) Ningbo 2010}) 13. Nge2 {[%emt 0:03:31]} Bd6 {[%emt 0:10:37]} 14. O-O-O {[%emt 0:07:59]} Bxf4 {[%emt 0:02:36]} 15. Nxf4 {[%emt 0:01:34]} Qc7 {[%emt 0:25:03]} 16. Rdg1 {[%emt 0:05:51]} Nh7 $1 {[%emt 0:01:42]} 17. Nh3 {[%emt 0:02:32]} Nd7 {[%emt 0:06:15]} 18. g5 {[%emt 0:02:17]} hxg5 {[%emt 0:00:07]} 19. Nxg5 {[%emt 0:00:34]} Ndf6 {[%emt 0:00:28]} 20. Nxh7 {[%emt 0:10:17]} (20. h6 $18 g6 21. Ne6 {[%mdl 64] Promotion}) 20... Nxh7 {[%emt 0:00:13]} 21. Rg2 {[%emt 0:01:42]} f6 {[%emt 0:22:51]} 22. Rhg1 {[%emt 0:08:03]} Ng5 {[%emt 0:02:28]} 23. h6 {[%emt 0:10:02]} Rf7 {[%emt 0:01:09]} (23... gxh6 {was worth a try.} 24. f4 {[%mdl 64] Pin} Qh7) 24. f4 {[%emt 0:06:02]} Ne6 {[%emt 0:00:06]} 25. Qf5 {[%emt 0:00:35]} Qe7 {[%emt 0:00:35]} 26. Rg6 {[%emt 0:02:29]} Re8 {[%emt 0:01:00]} 27. Kb1 {[%emt 0:04:25]} b5 $18 {[%emt 0:00:14]} 28. Ne2 {[%emt 0:02:49]} Qf8 {[%emt 0:01:04]} 29. Ng3 {[%emt 0:01:19]} Ree7 {[%emt 0:01:10]} 30. Nh5 {[%emt 0:00:30]} Kh8 {[%emt 0:00:59]} 31. hxg7+ {[%emt 0:02:40]} Rxg7 {[%emt 0:00:04]} 32. Nxg7 {[%emt 0:01:03]} Nxg7 {[%emt 0:00:17]} 33. Rh6+ {[%emt 0:00:27]} Kg8 {[%emt 0:00:06]} 34. Qh7+ {[%emt 0:00:11]} Kf7 {[%emt 0:00:24]} 35. Rhg6 {[%emt 0:00:06]} 1-0